[Event "Kvibergspelen September 2019"]
[Site "Prioritet Serneke Arena, Krutvagen 2, Gothenburg, Sweden"]
[Date "2019.09.28"]
[Round "6.10"]
[White "Hansen, Lars"]
[Black "Ernst, Thomas"]
[Result "1-0"]
[TimeControl "15 minutes + 5 seconds per move from move one (Round 1 - 4) / 90 minutes + 30 seconds per move from move one (Round 5 - 8)"]
[BlackTitle "GM"]
[WhiteFideId "1402528"]
[BlackFideId "1700065"]
[WhiteElo "2207"]
[BlackElo "2328"]

1. d4 {[%clk 01:25:14]} {[%emt 00:05:44]} Nf6 {[%clk 01:29:57]} {[%emt
00:01:04]} 2. Bg5 {[%clk 01:25:17]} {[%emt 00:00:27]} Ne4 {[%clk 01:30:05]}
{[%emt 00:00:22]} 3. Bf4 {[%clk 01:25:36]} {[%emt 00:00:10]} c5 {[%clk
01:30:17]} {[%emt 00:00:18]} 4. f3 {[%clk 01:25:37]} {[%emt 00:00:30]} Qa5+
{[%clk 01:30:36]} {[%emt 00:00:11]} 5. c3 {[%clk 01:25:59]} {[%emt 00:00:07]}
Nf6 {[%clk 01:30:55]} {[%emt 00:00:12]} 6. d5 {[%clk 01:26:01]} {[%emt
00:00:29]} Qb6 {[%clk 01:30:19]} {[%emt 00:01:06]} 7. Bc1 {[%clk 01:20:16]}
{[%emt 00:06:15]} g6 {[%clk 01:29:06]} {[%emt 00:01:43]} 8. Na3 {[%clk
01:19:45]} {[%emt 00:01:00]} Bg7 {[%clk 01:26:29]} {[%emt 00:03:07]} 9. Nc4
{[%clk 01:19:01]} {[%emt 00:01:15]} Qd8 {[%clk 01:26:50]} {[%emt 00:00:09]} 10.
e4 {[%clk 01:18:19]} {[%emt 00:01:12]} O-O {[%clk 01:26:59]} {[%emt 00:00:21]}
11. a4 {[%clk 01:13:17]} {[%emt 00:05:33]} b6 {[%clk 01:25:00]} {[%emt
00:02:27]} 12. Bf4 {[%clk 01:10:59]} {[%emt 00:02:49]} e6 {[%clk 01:12:15]}
{[%emt 00:13:14]} 13. dxe6 {[%clk 00:51:51]} {[%emt 00:19:38]} fxe6 {[%clk
01:12:32]} {[%emt 00:00:12]} 14. Bd6 {[%clk 00:52:16]} {[%emt 00:00:06]} Re8
{[%clk 01:12:12]} {[%emt 00:00:51]} 15. Nh3 {[%clk 00:51:25]} {[%emt 00:01:20]}
Nc6 {[%clk 01:05:24]} {[%emt 00:07:18]} 16. Be2 {[%clk 00:45:47]} {[%emt
00:06:09]} Ba6 {[%clk 01:05:08]} {[%emt 00:00:46]} 17. O-O {[%clk 00:44:07]}
{[%emt 00:02:09]} Bf8 {[%clk 01:04:17]} {[%emt 00:01:21]} 18. Nf4 {[%clk
00:36:40]} {[%emt 00:07:57]} Bxd6 {[%clk 00:58:54]} {[%emt 00:05:54]} 19. Nxd6
{[%clk 00:34:24]} {[%emt 00:02:46]} Bxe2 {[%clk 00:59:09]} {[%emt 00:00:14]} 20.
Qxe2 {[%clk 00:34:32]} {[%emt 00:00:21]} Re7 {[%clk 00:58:17]} {[%emt
00:01:22]} 21. Rfd1 {[%clk 00:31:10]} {[%emt 00:03:52]} Ne8 {[%clk 00:57:16]}
{[%emt 00:01:31]} 22. e5 {[%clk 00:18:05]} {[%emt 00:13:36]} Nxd6 {[%clk
00:57:16]} {[%emt 00:00:31]} 23. Rxd6 {[%clk 00:18:16]} {[%emt 00:00:19]} Qf8
{[%clk 00:54:51]} {[%emt 00:02:54]} 24. Qe4 {[%clk 00:17:00]} {[%emt 00:01:46]}
Qf5 {[%clk 00:52:19]} {[%emt 00:03:01]} 25. Qxf5 {[%clk 00:16:28]} {[%emt
00:01:03]} gxf5 {[%clk 00:52:10]} {[%emt 00:00:39]} 26. Re1 {[%clk 00:14:50]}
{[%emt 00:02:07]} Kf7 {[%clk 00:51:30]} {[%emt 00:01:10]} 27. Nh5 {[%clk
00:13:14]} {[%emt 00:02:06]} Na5 {[%clk 00:43:59]} {[%emt 00:08:03]} 28. Rd3
{[%emt 00:06:58]} Rd8 {[%clk 00:44:03]} {[%emt 00:00:19]} 29. f4 {[%clk
00:03:14]} {[%emt 00:04:09]} d5 {[%clk 00:44:24]} {[%emt 00:00:08]} 30. exd6
{[%clk 00:01:47]} {[%emt 00:01:58]} Red7 {[%clk 00:43:30]} {[%emt 00:01:24]} 31.
Rg3 {[%clk 00:02:13]} {[%emt 00:00:05]} Rxd6 {[%clk 00:43:33]} {[%emt
00:00:27]} 32. Rg7+ {[%clk 00:02:35]} {[%emt 00:00:07]} Kf8 {[%clk 00:43:57]}
{[%emt 00:00:06]} 33. Rxh7 {[%clk 00:01:22]} {[%emt 00:01:44]} Nc6 {[%clk
00:42:46]} {[%emt 00:01:40]} 34. Kf2 {[%clk 00:00:40]} {[%emt 00:01:12]} Ne7
{[%clk 00:42:50]} {[%emt 00:00:25]} 35. Rh8+ {[%clk 00:00:37]} {[%emt
00:00:34]} Kf7 {[%clk 00:43:10]} {[%emt 00:00:09]} 36. Rh7+ {[%clk 00:01:02]}
{[%emt 00:00:06]} Kf8 {[%clk 00:43:33]} {[%emt 00:00:07]} 37. Kg3 {[%clk
00:00:58]} {[%emt 00:00:34]} Ng6 {[%clk 00:43:13]} {[%emt 00:00:49]} 38. h3
{[%clk 00:00:47]} {[%emt 00:00:42]} Rd2 {[%clk 00:42:35]} {[%emt 00:01:08]} 39.
Rxe6 {[%clk 00:00:45]} {[%emt 00:00:33]} R8d3+ {[%clk 00:42:44]} {[%emt
00:00:20]} 40. Kh2 {[%clk 00:01:12]} {[%emt 00:00:03]} Nh4 {[%clk 00:43:05]}
{[%emt 00:00:09]} 41. Rf6+ {[%clk 00:01:13]} {[%emt 00:00:30]} Ke8 {[%clk
00:43:24]} {[%emt 00:00:11]} 42. Ng7+ {[%clk 00:01:14]} {[%emt 00:00:28]} Ke7
{[%clk 00:43:25]} {[%emt 00:00:29]} 43. Re6+ {[%clk 00:01:05]} {[%emt
00:00:38]} Kf7 {[%clk 00:43:40]} {[%emt 00:00:16]} 44. Rxh4 {[%clk 00:01:21]}
{[%emt 00:00:14]} Kxg7 {[%clk 00:44:03]} {[%emt 00:00:08]} 45. Re7+ {[%clk
00:01:26]} {[%emt 00:00:24]} Kg8 {[%clk 00:44:20]} {[%emt 00:00:13]} 46. Rhh7
{[%clk 00:01:09]} {[%emt 00:00:44]} Rxb2 {[%clk 00:44:23]} {[%emt 00:00:30]} 47.
Rxa7 {[%clk 00:01:17]} {[%emt 00:00:21]} Rdd2 {[%clk 00:44:06]} {[%emt
00:00:47]} 48. Rhg7+ {[%clk 00:01:39]} {[%emt 00:00:07]} Kh8 {[%clk 00:43:58]}
{[%emt 00:00:40]} 49. h4 {[%clk 00:01:54]} {[%emt 00:00:14]} Rf2 {[%clk
00:43:55]} {[%emt 00:00:31]} 50. h5 {[%clk 00:00:46]} {[%emt 00:01:41]} Rxf4
{[%clk 00:44:16]} {[%emt 00:00:09]} 51. Rh7+ {[%clk 00:00:53]} {[%emt
00:00:23]} Kg8 {[%clk 00:44:38]} {[%emt 00:00:08]} 52. Rag7+ {[%clk 00:01:12]}
{[%emt 00:00:11]} Kf8 {[%clk 00:44:59]} {[%emt 00:00:09]} 53. Rf7+ {[%clk
00:00:43]} {[%emt 00:01:00]} Kg8 {[%clk 00:45:19]} {[%emt 00:00:10]} 54. Rfg7+
{[%clk 00:00:44]} {[%emt 00:00:29]} Kf8 {[%clk 00:45:42]} {[%emt 00:00:06]} 55.
Rb7 {[%clk 00:00:46]} {[%emt 00:00:26]} Rh4+ {[%clk 00:41:29]} {[%emt
00:04:45]} 56. Kg1 {[%clk 00:01:02]} {[%emt 00:00:13]} Kg8 {[%clk 00:41:49]}
{[%emt 00:00:12]} 57. Rhc7 {[%clk 00:01:03]} {[%emt 00:00:26]} Rb1+ {[%clk
00:42:08]} {[%emt 00:00:15]} 58. Kf2 {[%clk 00:01:26]} {[%emt 00:00:06]} Rb2+
{[%clk 00:42:33]} {[%emt 00:00:05]} 59. Kf3 {[%clk 00:01:41]} {[%emt 00:00:14]}
1-0

[Event "Kvibergspelen September 2019"]
[Site "Prioritet Serneke Arena, Krutvagen 2, Gothenburg, Sweden"]
[Date "2019.09.28"]
[Round "6.11"]
[White "Storme, Isak"]
[Black "Jaksland, Tim"]
[Result "0-1"]
[TimeControl "15 minutes + 5 seconds per move from move one (Round 1 - 4) / 90 minutes + 30 seconds per move from move one (Round 5 - 8)"]
[WhiteTitle "FM"]
[BlackTitle "FM"]
[WhiteFideId "1728113"]
[BlackFideId "1401084"]
[WhiteElo "2272"]
[BlackElo "2214"]

1. d4 {[%clk 01:30:59]} Nf6 {[%clk 01:30:53]} {[%emt 00:00:08]} 2. c4 {[%clk
01:31:24]} {[%emt 00:00:05]} c5 {[%clk 01:30:54]} {[%emt 00:00:29]} 3. d5
{[%clk 01:31:48]} {[%emt 00:00:05]} b5 {[%clk 01:31:21]} {[%emt 00:00:03]} 4.
cxb5 {[%clk 01:32:13]} {[%emt 00:00:05]} a6 {[%clk 01:31:42]} {[%emt 00:00:09]}
5. bxa6 {[%clk 01:32:38]} {[%emt 00:00:05]} g6 {[%clk 01:32:03]} {[%emt
00:00:09]} 6. Nc3 {[%clk 01:33:02]} {[%emt 00:00:06]} Bg7 {[%clk 01:31:19]}
{[%emt 00:01:14]} 7. e4 {[%clk 01:33:26]} {[%emt 00:00:05]} O-O {[%clk
01:31:39]} {[%emt 00:00:11]} 8. e5 {[%clk 01:33:52]} {[%emt 00:00:04]} Ne8
{[%clk 01:31:37]} {[%emt 00:00:32]} 9. h4 {[%clk 01:34:17]} {[%emt 00:00:05]}
Bxe5 {[%clk 01:30:59]} {[%emt 00:01:08]} 10. h5 {[%clk 01:28:26]} {[%emt
00:06:21]} d6 {[%clk 01:23:58]} {[%emt 00:07:31]} 11. Bh6 {[%clk 01:26:54]}
{[%emt 00:02:00]} Ng7 {[%clk 01:23:26]} {[%emt 00:01:04]} 12. Qd2 {[%clk
01:26:53]} {[%emt 00:00:30]} Nxh5 {[%clk 01:07:46]} {[%emt 00:16:10]} 13. Bxf8
{[%clk 01:26:43]} {[%emt 00:00:40]} Qxf8 {[%clk 01:03:32]} {[%emt 00:04:44]} 14.
Nf3 {[%clk 01:26:45]} {[%emt 00:00:28]} Bg7 {[%clk 01:03:31]} {[%emt 00:00:31]}
15. Be2 {[%clk 01:17:14]} {[%emt 00:10:01]} Nxa6 {[%clk 01:01:33]} {[%emt
00:02:29]} 16. O-O {[%clk 01:12:58]} {[%emt 00:04:45]} Bh6 {[%clk 00:53:35]}
{[%emt 00:08:28]} 17. Qd1 {[%clk 01:12:26]} {[%emt 00:01:01]} Nf4 {[%clk
00:50:29]} {[%emt 00:03:37]} 18. Bc4 {[%clk 01:11:45]} {[%emt 00:01:11]} Bg4
{[%clk 00:41:37]} {[%emt 00:09:22]} 19. g3 {[%clk 01:12:00]} {[%emt 00:00:14]}
Nh3+ {[%clk 00:36:18]} {[%emt 00:05:49]} 20. Kh2 {[%clk 01:12:12]} {[%emt
00:00:17]} f5 {[%clk 00:18:42]} {[%emt 00:18:08]} 21. Be2 {[%clk 01:11:01]}
{[%emt 00:01:39]} f4 {[%clk 00:14:54]} {[%emt 00:04:19]} 22. Nd2 {[%clk
01:06:54]} {[%emt 00:04:36]} Bxe2 {[%clk 00:09:24]} {[%emt 00:06:01]} 23. Qxe2
{[%clk 01:05:04]} {[%emt 00:02:20]} Ng5 {[%clk 00:09:35]} {[%emt 00:00:19]} 24.
Qg4 {[%clk 01:00:54]} {[%emt 00:04:39]} Nb4 {[%clk 00:06:30]} {[%emt 00:03:36]}
25. gxf4 {[%clk 00:50:33]} {[%emt 00:10:51]} Nf7 {[%clk 00:06:13]} {[%emt
00:00:46]} 26. Nf3 {[%clk 00:49:15]} {[%emt 00:01:47]} Nd3 {[%clk 00:04:54]}
{[%emt 00:01:50]} 27. Ng5 {[%clk 00:43:55]} {[%emt 00:05:49]} Nxf4 {[%clk
00:03:09]} {[%emt 00:02:16]} 28. Qxf4 {[%clk 00:43:39]} {[%emt 00:00:45]} Bxg5
{[%clk 00:03:13]} {[%emt 00:00:27]} 29. Qg3 {[%clk 00:40:07]} {[%emt 00:04:01]}
Rb8 {[%clk 00:03:12]} {[%emt 00:00:32]} 30. Ne4 {[%clk 00:38:06]} {[%emt
00:02:31]} Bh6 {[%clk 00:02:40]} {[%emt 00:01:02]} 31. a4 {[%clk 00:28:03]}
{[%emt 00:10:33]} Rb4 {[%clk 00:02:56]} {[%emt 00:00:15]} 32. Qf3 {[%clk
00:27:27]} {[%emt 00:01:05]} Qg7 {[%clk 00:02:25]} {[%emt 00:01:02]} 33. a5
{[%clk 00:24:36]} {[%emt 00:03:20]} Qe5+ {[%clk 00:01:55]} {[%emt 00:01:00]} 34.
Ng3 {[%clk 00:24:49]} {[%emt 00:00:17]} Ng5 {[%clk 00:01:51]} {[%emt 00:00:35]}
35. Qd1 {[%clk 00:22:37]} {[%emt 00:02:41]} Rd4 {[%clk 00:02:01]} {[%emt
00:00:20]} 36. a6 {[%clk 00:21:53]} {[%emt 00:01:14]} Qxd5 {[%clk 00:02:01]}
{[%emt 00:00:31]} 37. a7 {[%clk 00:16:18]} {[%emt 00:06:05]} Rh4+ {[%clk
00:02:25]} {[%emt 00:00:05]} 38. Kg1 {[%clk 00:16:42]} {[%emt 00:00:05]} Nh3+
{[%clk 00:01:33]} {[%emt 00:01:23]} 39. Kh2 {[%clk 00:17:07]} {[%emt 00:00:05]}
Nf4+ {[%clk 00:01:37]} {[%emt 00:00:26]} 40. Kg1 {[%clk 00:17:31]} {[%emt
00:00:05]} Qg2# {[%clk 00:02:04]} {[%emt 00:00:04]} 0-1

[Event "Kvibergspelen September 2019"]
[Site "Prioritet Serneke Arena, Krutvagen 2, Gothenburg, Sweden"]
[Date "2019.09.28"]
[Round "6.12"]
[White "Rasti, Arvin"]
[Black "Sidorchuk, Dmitry"]
[Result "1/2-1/2"]
[TimeControl "15 minutes + 5 seconds per move from move one (Round 1 - 4) / 90 minutes + 30 seconds per move from move one (Round 5 - 8)"]
[WhiteFideId "1741160"]
[BlackFideId "14110903"]
[WhiteElo "2182"]
[BlackElo "2266"]

1. Nf3 {[%clk 01:30:54]} {[%emt 00:00:04]} Nf6 {[%clk 01:30:34]} {[%emt
00:00:26]} 2. c4 {[%clk 01:31:06]} {[%emt 00:00:18]} g6 {[%clk 01:28:21]}
{[%emt 00:02:43]} 3. Nc3 {[%clk 01:30:34]} {[%emt 00:01:02]} Bg7 {[%clk
01:28:41]} {[%emt 00:00:10]} 4. d4 {[%clk 01:30:51]} {[%emt 00:00:14]} O-O
{[%clk 01:28:43]} {[%emt 00:00:28]} 5. e4 {[%clk 01:31:03]} {[%emt 00:00:17]}
d6 {[%clk 01:28:39]} {[%emt 00:00:34]} 6. Be2 {[%clk 01:30:51]} {[%emt
00:00:41]} Bg4 {[%clk 01:24:54]} {[%emt 00:04:15]} 7. O-O {[%clk 01:29:18]}
{[%emt 00:02:03]} e5 {[%clk 01:17:40]} {[%emt 00:07:44]} 8. d5 {[%clk
01:29:19]} {[%emt 00:00:29]} a5 {[%clk 01:17:13]} {[%emt 00:00:58]} 9. Bg5
{[%clk 01:28:24]} {[%emt 00:01:25]} h6 {[%clk 01:15:20]} {[%emt 00:02:23]} 10.
Be3 {[%clk 01:28:16]} {[%emt 00:00:38]} Na6 {[%clk 01:13:34]} {[%emt 00:02:16]}
11. Nd2 {[%clk 01:23:54]} {[%emt 00:04:51]} Bd7 {[%clk 01:12:33]} {[%emt
00:01:31]} 12. b3 {[%clk 01:20:12]} {[%emt 00:04:12]} Kh7 {[%clk 01:12:16]}
{[%emt 00:00:47]} 13. a3 {[%clk 01:14:59]} {[%emt 00:05:44]} Ng8 {[%clk
01:09:49]} {[%emt 00:02:56]} 14. Rb1 {[%clk 01:12:09]} {[%emt 00:03:20]} f5
{[%clk 01:10:05]} {[%emt 00:00:14]} 15. f3 {[%clk 01:12:19]} {[%emt 00:00:20]}
Nf6 {[%clk 01:00:44]} {[%emt 00:09:51]} 16. b4 {[%clk 01:10:48]} {[%emt
00:02:02]} axb4 {[%clk 01:00:53]} {[%emt 00:00:22]} 17. axb4 {[%clk 01:11:06]}
{[%emt 00:00:11]} Rg8 {[%clk 01:00:08]} {[%emt 00:01:14]} 18. c5 {[%clk
01:09:00]} {[%emt 00:02:35]} f4 {[%clk 00:57:28]} {[%emt 00:03:10]} 19. Bf2
{[%clk 01:09:16]} {[%emt 00:00:14]} g5 {[%clk 00:57:20]} {[%emt 00:00:39]} 20.
g4 {[%clk 01:05:56]} {[%emt 00:03:49]} fxg3 {[%clk 00:56:17]} {[%emt 00:01:33]}
21. hxg3 {[%clk 01:06:01]} {[%emt 00:00:26]} Nb8 {[%clk 00:51:11]} {[%emt
00:05:36]} 22. Kg2 {[%clk 01:03:57]} {[%emt 00:02:34]} Bf8 {[%clk 00:50:42]}
{[%emt 00:00:59]} 23. Ra1 {[%clk 01:00:22]} {[%emt 00:04:05]} Rxa1 {[%clk
00:49:22]} {[%emt 00:01:51]} 24. Qxa1 {[%clk 01:00:51]} {[%emt 00:00:01]} g4
{[%clk 00:48:24]} {[%emt 00:01:27]} 25. Rh1 {[%clk 00:52:58]} {[%emt 00:08:23]}
gxf3+ {[%clk 00:47:00]} {[%emt 00:01:54]} 26. Bxf3 {[%clk 00:53:07]} {[%emt
00:00:21]} Bg4 {[%clk 00:44:55]} {[%emt 00:02:36]} 27. Nd1 {[%clk 00:50:08]}
{[%emt 00:03:29]} Bxf3+ {[%clk 00:42:24]} {[%emt 00:03:00]} 28. Nxf3 {[%clk
00:50:29]} {[%emt 00:00:09]} Ng4 {[%clk 00:42:41]} {[%emt 00:00:13]} 29. Nh4
{[%clk 00:48:13]} {[%emt 00:02:46]} dxc5 {[%clk 00:38:47]} {[%emt 00:04:25]} 30.
Bxc5 {[%clk 00:41:08]} {[%emt 00:07:35]} Nd7 {[%clk 00:36:06]} {[%emt
00:03:11]} 31. Nf5 {[%clk 00:39:45]} {[%emt 00:01:53]} Nxc5 {[%clk 00:30:46]}
{[%emt 00:05:50]} 32. bxc5 {[%clk 00:40:09]} {[%emt 00:00:06]} Bxc5 {[%clk
00:30:03]} {[%emt 00:01:13]} 33. Qxe5 {[%clk 00:39:58]} {[%emt 00:00:41]} Rg6
{[%clk 00:25:01]} {[%emt 00:05:30]} 34. Qc3 {[%clk 00:36:22]} {[%emt 00:04:06]}
b6 {[%clk 00:21:26]} {[%emt 00:04:06]} 35. Nb2 {[%clk 00:35:13]} {[%emt
00:01:39]} Qg5 {[%clk 00:17:04]} {[%emt 00:04:51]} 36. Nd1 {[%clk 00:31:26]}
{[%emt 00:04:18]} Nf6 {[%clk 00:15:27]} {[%emt 00:02:05]} 37. Qe5 {[%clk
00:26:40]} {[%emt 00:05:18]} Bd6 {[%clk 00:11:14]} {[%emt 00:04:44]} 38. Qe6
{[%clk 00:23:18]} {[%emt 00:03:51]} Bxg3 {[%clk 00:11:12]} {[%emt 00:00:32]} 39.
Qf7+ {[%clk 00:21:56]} {[%emt 00:01:52]} Kh8 {[%clk 00:11:28]} {[%emt
00:00:14]} 40. Qxg6 {[%clk 00:21:32]} {[%emt 00:00:54]} Qxg6 {[%clk 00:11:32]}
{[%emt 00:00:26]} 41. Rxh6+ {[%clk 00:21:56]} {[%emt 00:00:06]} Qxh6 {[%clk
00:11:36]} {[%emt 00:00:26]} 42. Nxh6 {[%clk 00:22:24]} {[%emt 00:00:01]} Nxe4
{[%clk 00:10:40]} {[%emt 00:01:26]} 43. Kf3 {[%clk 00:22:36]} {[%emt 00:00:19]}
Nf6 {[%clk 00:10:57]} {[%emt 00:00:13]} 44. Kxg3 {[%clk 00:22:07]} {[%emt
00:00:58]} Nxd5 {[%clk 00:11:25]} {[%emt 00:00:01]} 45. Nf5 {[%clk 00:22:22]}
{[%emt 00:00:15]} Kg8 {[%clk 00:11:31]} {[%emt 00:00:25]} 46. Kf3 {[%clk
00:22:40]} {[%emt 00:00:12]} Kf7 {[%clk 00:11:58]} {[%emt 00:00:03]} 47. Ke4
{[%clk 00:22:54]} {[%emt 00:00:15]} Ke6 {[%clk 00:12:08]} {[%emt 00:00:20]} 48.
Nd4+ {[%clk 00:22:58]} {[%emt 00:00:26]} Kd6 {[%clk 00:12:17]} {[%emt
00:00:22]} 49. Nb5+ {[%clk 00:23:12]} {[%emt 00:00:16]} Kc5 {[%clk 00:12:37]}
{[%emt 00:00:10]} 50. Nxc7 {[%clk 00:23:12]} {[%emt 00:00:30]} Nxc7 {[%clk
00:13:06]} {[%emt 00:00:01]} 51. Kd3 {[%clk 00:23:31]} {[%emt 00:00:10]} Kb4
{[%clk 00:13:27]} {[%emt 00:00:10]} 52. Kc2 {[%clk 00:23:38]} {[%emt 00:00:22]}
Nd5 {[%clk 00:12:36]} {[%emt 00:01:21]} 53. Kb2 {[%clk 00:23:45]} {[%emt
00:00:22]} b5 {[%clk 00:12:58]} {[%emt 00:00:09]} 54. Nf2 {[%clk 00:23:45]}
{[%emt 00:00:29]} Kc4 {[%clk 00:13:25]} {[%emt 00:00:04]} 55. Ne4 {[%clk
00:23:46]} {[%emt 00:00:29]} b4 {[%clk 00:13:13]} {[%emt 00:00:42]} 56. Nd6+
{[%clk 00:24:00]} {[%emt 00:00:15]} Kc5 {[%clk 00:13:39]} {[%emt 00:00:05]} 57.
Ne4+ {[%clk 00:23:55]} {[%emt 00:00:34]} Kd4 {[%clk 00:13:56]} {[%emt
00:00:14]} 58. Nd6 {[%clk 00:24:16]} {[%emt 00:00:08]} Kc5 {[%clk 00:14:17]}
{[%emt 00:00:10]} 59. Ne4+ {[%clk 00:24:14]} {[%emt 00:00:32]} Kb5 {[%clk
00:14:07]} {[%emt 00:00:39]} 60. Kb3 {[%clk 00:23:57]} {[%emt 00:00:47]} Nc3
{[%clk 00:12:44]} {[%emt 00:01:54]} 61. Nxc3+ {[%clk 00:24:22]} {[%emt
00:00:05]} bxc3 {[%emt 00:00:02]} 62. Kxc3 {[%emt 00:00:02]} 1/2-1/2

[Event "Kvibergspelen September 2019"]
[Site "Prioritet Serneke Arena, Krutvagen 2, Gothenburg, Sweden"]
[Date "2019.09.28"]
[Round "6.13"]
[White "Nygren, Kim"]
[Black "Crevatin, Leo"]
[Result "1/2-1/2"]
[TimeControl "15 minutes + 5 seconds per move from move one (Round 1 - 4) / 90 minutes + 30 seconds per move from move one (Round 5 - 8)"]
[BlackTitle "CM"]
[WhiteFideId "1706136"]
[BlackFideId "1726307"]
[WhiteElo "2171"]
[BlackElo "2235"]

1. e4 {[%clk 01:30:57]} {[%emt 00:00:01]} c6 {[%clk 01:30:55]} {[%emt
00:00:06]} 2. Nc3 {[%clk 01:31:16]} {[%emt 00:00:11]} d5 {[%clk 01:31:21]}
{[%emt 00:00:03]} 3. Qf3 {[%clk 01:31:21]} {[%emt 00:00:26]} Nf6 {[%clk
01:30:15]} {[%emt 00:01:36]} 4. e5 {[%clk 01:31:34]} {[%emt 00:00:17]} Nfd7
{[%clk 01:30:38]} {[%emt 00:00:06]} 5. Qg3 {[%clk 01:31:29]} {[%emt 00:00:35]}
e6 {[%clk 01:30:38]} {[%emt 00:00:30]} 6. f4 {[%clk 01:31:18]} {[%emt
00:00:42]} Qb6 {[%clk 01:25:54]} {[%emt 00:05:13]} 7. Nf3 {[%clk 01:31:30]}
{[%emt 00:00:19]} g6 {[%clk 01:21:07]} {[%emt 00:05:18]} 8. h4 {[%clk
01:31:43]} {[%emt 00:00:16]} h5 {[%clk 01:21:07]} {[%emt 00:00:29]} 9. d4
{[%clk 01:29:43]} {[%emt 00:02:30]} c5 {[%clk 01:20:35]} {[%emt 00:01:02]} 10.
Bd3 {[%clk 01:29:18]} {[%emt 00:00:55]} cxd4 {[%clk 01:16:17]} {[%emt
00:04:48]} 11. Ne2 {[%clk 01:29:02]} {[%emt 00:00:47]} Nc6 {[%clk 01:14:11]}
{[%emt 00:02:37]} 12. Ng5 {[%clk 01:25:26]} {[%emt 00:04:05]} 1/2-1/2